Workbook

Sheet All. 9 - RIEPILOGO PER UGBTEP
A1: Anno | B1: CAPITOLO DI SPESA | C1: DETERMINA N. DEL | D1: CIG | E1: OGGETTO DEL CONTRATTO | F1: IMPORTO A BASE D'ASTA | G1: AMMONTARE INCENTIVO PER SINGOLO CONTRATTO (2% -1,90%) | H1: 0.8 | I1: 0.2 | J1: quota 80% RELATIVA ALL'UFFICIO che ha predisposto l'allegato 10 (es. UUCR, SPI, … ALTRO) anno in corso | K1: quota 80% RELATIVA ALL'UFFICIO che ha predisposto l'allegato 10 (es. UUCR, SPI, … ALTRO) anno in corso | L1: Tipo incarico | M1: importo unitario liquidato | N1: percentuale di ripartizione dell'incentivo in base al tipo di incarico svolto | O1: QUOTA LIQUIDATA NEL 2019 | P1: QUOTA LIQUIDATA NEL 2020 | Q1: 2022 | R1: 2023 | S1: 2024 | T1: 2025
A2: 2021 | B2: 1273 | C2: 49 del 06/04/2021 | D2: ZD131375B9 | E2: contratto a consumo con la società Eltime s.r.l. per forniture di beni e servizi complementari al funzionamento del sistema di gestione presenze | F2: 30000 | G2: =+F2*0.02 -> 600 | H2: =+G2*0.8 -> 480 | I2: =+G2*0.2 -> 120 | J2: =+K2 -> 148.8 | K2: =+M2+M3+M4+M5 -> 148.8 | L2: Inc. Pred. Doc | M2: =+H2*N2 -> 24 | N2: 0.05
A3: 2021 | B3: 1273 | C3: 49 del 06/04/2021 | D3: ZD131375B9 | E3: contratto a consumo con la società Eltime s.r.l. per forniture di beni e servizi complementari al funzionamento del sistema di gestione presenze | F3: 30000 | G3: =+F3*0.02 -> 600 | H3: =+G3*0.8 -> 480 | I3: =+G3*0.2 -> 120 | L3: Coll. Inc. Pred. Doc | M3: =+H3*N3 -> 48 | N3: 0.1
A4: 2021 | B4: 1273 | C4: 49 del 06/04/2021 | D4: ZD131375B9 | E4: contratto a consumo con la società Eltime s.r.l. per forniture di beni e servizi complementari al funzionamento del sistema di gestione presenze | F4: 30000 | G4: 600 | H4: 480 | I4: 120 | L4: RUP Affidamento | M4: =+H4*N4 -> 48 | N4: 0.1
A5: 2021 | B5: 1273 | C5: 49 del 06/04/2021 | D5: ZD131375B9 | E5: contratto a consumo con la società Eltime s.r.l. per forniture di beni e servizi complementari al funzionamento del sistema di gestione presenze | F5: 30000 | G5: 600 | H5: 480 | I5: 120 | L5: Coll RUP Aff. | M5: =+H5*N5 -> 28.8 | N5: 0.06
A6: 2020 | B6: 1273 | C6: 194 DEL 05/11/2020 | D6: 85032808A2 | E6: acquisizione dei servizi di assistenza e manutenzione in scadenza per gli apparati di Centro Stella | F6: 120000 | G6: =+F6*0.02 -> 2400 | H6: =+G6*0.8 -> 1920 | I6: =+G6*0.2 -> 480 | J6: =+K6 -> 595.2 | K6: =+M6+M7+M8+M9 -> 595.2 | L6: Inc. Pred. Doc | M6: =+H6*N6 -> 96 | N6: 0.05
A7: 2020 | B7: 1273 | C7: 194 DEL 05/11/2020 | D7: 85032808A2 | E7: acquisizione dei servizi di assistenza e manutenzione in scadenza per gli apparati di Centro Stella | F7: 120000 | G7: =+F7*0.02 -> 2400 | H7: =+G7*0.8 -> 1920 | I7: =+G7*0.2 -> 480 | L7: Coll. Inc. Pred. Doc | M7: =+H7*N7 -> 192 | N7: 0.1
A8: 2020 | B8: 1273 | C8: 194 DEL 05/11/2020 | D8: 85032808A2 | E8: acquisizione dei servizi di assistenza e manutenzione in scadenza per gli apparati di Centro Stella | F8: 120000 | G8: 2400 | H8: 1920 | I8: 480 | L8: RUP Affidamento | M8: =+H8*N8 -> 192 | N8: 0.1
A9: 2020 | B9: 1273 | C9: 194 DEL 05/11/2020 | D9: 85032808A2 | E9: acquisizione dei servizi di assistenza e manutenzione in scadenza per gli apparati di Centro Stella | F9: 120000 | G9: 2400 | H9: 1920 | I9: 480 | L9: Coll RUP Aff. | M9: =+H9*N9 -> 115.2 | N9: 0.06
A10: 2021 | B10: 1273 | C10: 45 del 25/03/2021 | D10: 8684198AE3 | E10: fornitura di licenze Azure Microsoft | F10: 125230.05 | G10: 2504.601 | H10: 2003.6808 | I10: 500.9202 | J10: =+K10 -> 621.141048 | K10: =+M10+M11+M12+M13 -> 621.141048 | L10: Inc. Pred. Doc | M10: =+H10*N10 -> 100.18404 | N10: 0.05
A11: 2021 | B11: 1273 | C11: 45 del 25/03/2021 | D11: 8684198AE3 | E11: fornitura di licenze Azure Microsoft | F11: 125230.05 | G11: 2504.601 | H11: 2003.6808 | I11: =+G11*0.2 -> 500.9202 | L11: Coll. Inc. Pred. Doc | M11: =+H11*N11 -> 200.36808 | N11: 0.1
A12: 2021 | B12: 1273 | C12: 45 del 25/03/2021 | D12: 8684198AE3 | E12: fornitura di licenze Azure Microsoft | F12: 125230.05 | G12: 2504.601 | H12: 2003.6808 | I12: 500.9202 | L12: RUP Affidamento | M12: =+H12*N12 -> 200.36808 | N12: 0.1
A13: 2021 | B13: 1273 | C13: 45 del 25/03/2021 | D13: 8684198AE3 | E13: fornitura di licenze Azure Microsoft | F13: 125230.05 | G13: 2504.601 | H13: 2003.6808 | I13: 500.9202 | L13: Coll RUP Aff. | M13: =+H13*N13 -> 120.220848 | N13: 0.06
A14: 2021 | B14: 1273 | C14: 111 del 19/08/2021 | D14: 8859356BD7 | E14: Affidamento dei Servizi di supporto "Microsoft Services Premier Support" - Premier standard (2021-2022) | F14: 59500 | G14: 1190 | H14: 952 | I14: 238 | J14: =+K14 -> 295.12 | K14: =+M14+M15+M16+M17 -> 295.12 | L14: Inc. Pred. Doc. | M14: =+H14*N14 -> 47.6 | N14: 0.05
A15: 2021 | B15: 1273 | C15: 111 del 19/08/2021 | D15: 8859356BD7 | E15: Affidamento dei Servizi di supporto "Microsoft Services Premier Support" - Premier standard (2021-2022) | F15: 59500 | G15: 1190 | H15: 952 | I15: =+G15*0.2 -> 238 | L15: Coll. Inc. Pred. Doc. | M15: =+H15*N15 -> 95.2 | N15: 0.1
A16: 2021 | B16: 1273 | C16: 111 del 19/08/2021 | D16: 8859356BD7 | E16: Affidamento dei Servizi di supporto "Microsoft Services Premier Support" - Premier standard (2021-2022) | F16: 59500 | G16: 1190 | H16: 952 | I16: 238 | L16: RUP Affidamento | M16: =+H16*N16 -> 95.2 | N16: 0.1
A17: 2021 | B17: 1273 | C17: 111 del 19/08/2021 | D17: 8859356BD7 | E17: Affidamento dei Servizi di supporto "Microsoft Services Premier Support" - Premier standard (2021-2022) | F17: 59500 | G17: 1190 | H17: 952 | I17: 238 | L17: Coll RUP Aff. | M17: =+H17*N17 -> 57.12 | N17: 0.06
A18: 2021 | B18: 1273 | C18: 112 del 19/08/2021 | D18: Z2B32CBD2D | E18: Affidamento dei servizi della suite Sebina, quota parte biblioteca aggiuntiva Polo RMG per la Biblioteca del Consiglio di Stato (e i Tar collegati) fino al 30 aprile 2022, con servizio di assistenza on site per complessive 140 ore | F18: 11667 | G18: 233.34 | H18: 186.672 | I18: 46.668 | J18: =+K18 -> 57.86832 | K18: =+M18+M19+M20+M21 -> 57.86832 | L18: Inc. Pred. Doc. | M18: =+H18*N18 -> 9.3336 | N18: 0.05
A19: 2021 | B19: 1273 | C19: 112 del 19/08/2021 | D19: Z2B32CBD2D | E19: Affidamento dei servizi della suite Sebina, quota parte biblioteca aggiuntiva Polo RMG per la Biblioteca del Consiglio di Stato (e i Tar collegati) fino al 30 aprile 2022, con servizio di assistenza on site per complessive 140 ore | F19: 11667 | G19: 233.34 | H19: 186.672 | I19: =+G19*0.2 -> 46.668 | L19: Coll. Inc. Pred. Doc. | M19: =+H19*N19 -> 18.6672 | N19: 0.1
A20: 2021 | B20: 1273 | C20: 112 del 19/08/2021 | D20: Z2B32CBD2D | E20: Affidamento dei servizi della suite Sebina, quota parte biblioteca aggiuntiva Polo RMG per la Biblioteca del Consiglio di Stato (e i Tar collegati) fino al 30 aprile 2022, con servizio di assistenza on site per complessive 140 ore | F20: 11667 | G20: 233.34 | H20: 186.672 | I20: 46.668 | L20: RUP Affidamento | M20: =+H20*N20 -> 18.6672 | N20: 0.1
A21: 2021 | B21: 1273 | C21: 112 del 19/08/2021 | D21: Z2B32CBD2D | E21: Affidamento dei servizi della suite Sebina, quota parte biblioteca aggiuntiva Polo RMG per la Biblioteca del Consiglio di Stato (e i Tar collegati) fino al 30 aprile 2022, con servizio di assistenza on site per complessive 140 ore | F21: 11667 | G21: 233.34 | H21: 186.672 | I21: 46.668 | L21: Coll RUP Aff. | M21: =+H21*N21 -> 11.20032 | N21: 0.06
A22: 2021 | B22: 1273 | C22: 125 del 16/09/2021 | D22: 890781517C | E22: adesione alla Convenzione Consip Telefonia edizione 8, dei servizi di Telefonia Mobile per le Pubbliche Amministrazioni | F22: 230000 | G22: =+F22*1.9/100 -> 4370 | H22: 3496 | I22: 874 | J22: =+K22 -> 489.44 | K22: =+M22+M23+M24+M25 -> 489.44 | L22: Inc. Pred. Doc. | M22: =+H22*N22 -> 69.92 | N22: 0.02
A23: 2021 | B23: 1273 | C23: 125 del 16/09/2021 | D23: 890781517C | E23: adesione alla Convenzione Consip Telefonia edizione 8, dei servizi di Telefonia Mobile per le Pubbliche Amministrazioni | F23: 230000 | G23: =+F23*1.9/100 -> 4370 | H23: 3496 | I23: =+G23*0.2 -> 874 | L23: Coll. Inc. Pred. Doc. | M23: =+H23*N23 -> 34.96 | N23: 0.01
A24: 2021 | B24: 1273 | C24: 125 del 16/09/2021 | D24: 890781517C | E24: adesione alla Convenzione Consip Telefonia edizione 8, dei servizi di Telefonia Mobile per le Pubbliche Amministrazioni | F24: 230000 | G24: 4370 | H24: 3496 | I24: 874 | L24: RUP Affidamento | M24: =+H24*N24 -> 279.68 | N24: 0.08
A25: 2021 | B25: 1273 | C25: 125 del 16/09/2021 | D25: 890781517C | E25: adesione alla Convenzione Consip Telefonia edizione 8, dei servizi di Telefonia Mobile per le Pubbliche Amministrazioni | F25: 230000 | G25: 4370 | H25: 3496 | I25: 874 | L25: Coll RUP Aff. | M25: =+H25*N25 -> 104.88 | N25: 0.03
A26: 2021 | B26: 1273 | C26: 161 del 11/11/2021 | D26: 897532200 | E26: Servizi di banca dati De Jure (Giuffrè) | F26: 270000 | G26: =+F26*1.9/100 -> 5130 | H26: =+G26*0.8 -> 4104 | I26: 1026 | J26: =+K26 -> 1272.24 | K26: =+M26+M27+M28+M29 -> 1272.24 | L26: Inc. Pred. Doc | M26: =+H26*N26 -> 205.2 | N26: 0.05
A27: 2021 | B27: 1273 | C27: 161 del 11/11/2021 | D27: 897532200 | E27: Servizi di banca dati De Jure (Giuffrè) | F27: 270000 | G27: =+F27*1.9/100 -> 5130 | H27: 4104 | I27: =+G27*0.2 -> 1026 | L27: Coll. Inc. Pred. Doc | M27: =+H27*N27 -> 410.4 | N27: 0.1
A28: 2021 | B28: 1273 | C28: 161 del 11/11/2021 | D28: 897532200 | E28: Servizi di banca dati De Jure (Giuffrè) | F28: 270000 | G28: 5130 | H28: 4104 | I28: 1026 | L28: RUP Affidamento | M28: =+H28*N28 -> 410.4 | N28: 0.1
A29: 2021 | B29: 1273 | C29: 161 del 11/11/2021 | D29: 897532200 | E29: Servizi di banca dati De Jure (Giuffrè) | F29: 270000 | G29: 5130 | H29: 4104 | I29: 1026 | L29: Coll RUP Aff. | M29: =+H29*N29 -> 246.24 | N29: 0.06
A30: 2020 | B30: 1273 | C30: 243 del 28/12/2020 | D30: 8565699e6a | E30: Servizi di banca dati lex italia | F30: 125000 | G30: =+F30*0.02 -> 2500 | H30: =+G30*0.8 -> 2000 | I30: 500 | J30: =+K30 -> 620 | K30: =+M30+M31+M32+M33 -> 620 | L30: Inc. Pred. Doc | M30: =+H30*N30 -> 100 | N30: 0.05
A31: 2020 | B31: 1273 | C31: 243 del 28/12/2020 | D31: 8565699e6a | E31: Servizi di banca dati lex italia | F31: 125000 | G31: =+F31*0.02 -> 2500 | H31: 2000 | I31: =+G31*0.2 -> 500 | L31: Coll. Inc. Pred. Doc | M31: =+H31*N31 -> 200 | N31: 0.1
A32: 2020 | B32: 1273 | C32: 243 del 28/12/2020 | D32: 8565699e6a | E32: Servizi di banca dati lex italia | F32: 125000 | G32: 2500 | H32: 2000 | I32: 500 | L32: RUP Affidamento | M32: =+H32*N32 -> 200 | N32: 0.1
A33: 2020 | B33: 1273 | C33: 243 del 28/12/2020 | D33: 8565699e6a | E33: Servizi di banca dati lex italia | F33: 125000 | G33: 2500 | H33: 2000 | I33: 500 | L33: Coll RUP Aff. | M33: =+H33*N33 -> 120 | N33: 0.06
A34: 2020 | B34: 1273 | C34: 220 DEL 07/12/2020 | D34: 8549604C67 | E34: soluzione Portale e Content Management per il sito internet istituzionale della Giustizia amministrativa Liferay DXP e del relativo servizio di supporto specialistico accessorio a consumo” | F34: 203500 | G34: 4070 | H34: 3256 | I34: 814 | J34: =+K34 -> 1009.36 | K34: =+M34+M35+M37+M38+M36 -> 1009.36 | L34: Inc. Pred. Doc | M34: =+H34*N34 -> 162.8 | N34: 0.05
A35: 2020 | B35: 1273 | C35: 220 DEL 07/12/2020 | D35: 8549604C67 | E35: soluzione Portale e Content Management per il sito internet istituzionale della Giustizia amministrativa Liferay DXP e del relativo servizio di supporto specialistico accessorio a consumo” | F35: 203500 | G35: =+F35*0.02 -> 4070 | H35: =+G35*0.8 -> 3256 | I35: =+G35*0.2 -> 814 | L35: Coll. Inc. Pred. Doc | M35: =+H35*N35 -> 211.64 | N35: 0.065
A36: 2020 | B36: 1273 | C36: 220 DEL 07/12/2020 | D36: 8549604C67 | E36: soluzione Portale e Content Management per il sito internet istituzionale della Giustizia amministrativa Liferay DXP e del relativo servizio di supporto specialistico accessorio a consumo” | F36: 203500 | G36: =+F36*0.02 -> 4070 | H36: =+G36*0.8 -> 3256 | I36: =+G36*0.2 -> 814 | L36: Coll. Inc. Pred. Doc | M36: =+H36*N36 -> 113.96 | N36: 0.035
A37: 2020 | B37: 1273 | C37: 220 DEL 07/12/2020 | D37: 8549604C67 | E37: soluzione Portale e Content Management per il sito internet istituzionale della Giustizia amministrativa Liferay DXP e del relativo servizio di supporto specialistico accessorio a consumo” | F37: 203500 | G37: 4070 | H37: 3256 | I37: 814 | L37: RUP Affidamento | M37: =+H37*N37 -> 325.6 | N37: 0.1
A38: 2020 | B38: 1273 | C38: 220 DEL 07/12/2020 | D38: 8549604C67 | E38: soluzione Portale e Content Management per il sito internet istituzionale della Giustizia amministrativa Liferay DXP e del relativo servizio di supporto specialistico accessorio a consumo” | F38: 203500 | G38: 4070 | H38: 3256 | I38: 814 | L38: Coll RUP Aff. | M38: =+H38*N38 -> 195.36 | N38: 0.06
A39: 2021 | B39: 1273 | C39: 91 del 06/07/2021 | D39: Z10325D5F5 | E39: Fornitura Toner Stampanti | F39: 13000 | G39: 260 | H39: 208 | I39: 52 | J39: =+K39 -> 64.48 | K39: =+M39+M40+M41+M42+M43 -> 64.48 | L39: Inc. Pred. Doc | M39: =+H39*N39 -> 10.4 | N39: 0.05
A40: 2021 | B40: 1273 | C40: 91 del 06/07/2021 | D40: Z10325D5F5 | E40: Fornitura Toner Stampanti | F40: 13000 | G40: =+F40*0.02 -> 260 | H40: =+G40*0.8 -> 208 | I40: =+G40*0.2 -> 52 | L40: Coll. Inc. Pred. Doc | M40: =+H40*N40 -> 13.52 | N40: 0.065
A41: 2021 | B41: 1273 | C41: 91 del 06/07/2021 | D41: Z10325D5F5 | E41: Fornitura Toner Stampanti | F41: 13000 | G41: 260 | H41: 208 | I41: 52 | L41: Coll. Inc. Pred. Doc | M41: =+H41*N41 -> 7.28 | N41: 0.035
A42: 2021 | B42: 1273 | C42: 91 del 06/07/2021 | D42: Z10325D5F5 | E42: Fornitura Toner Stampanti | F42: 13000 | G42: 260 | H42: 208 | I42: 52 | L42: RUP Affidamento | M42: =+H42*N42 -> 20.8 | N42: 0.1
A43: 2021 | B43: 1273 | C43: 91 del 06/07/2021 | D43: Z10325D5F5 | E43: Fornitura Toner Stampanti | F43: 13000 | G43: 260 | H43: 208 | I43: 52 | L43: Coll RUP Aff. | M43: =+H43*N43 -> 12.48 | N43: 0.06
A44: 2021 | B44: 1273 | C44: 175 del 01/12/2021 | D44: ZE23431F56 | E44: Acquisto stampanti multifunzione per dotazione domestica magistrati (l'acquisto è stato inserito sul cap. riportato in determina, anche se il cap. corretto sarebbe il 4250) | F44: 18500 | G44: 370 | H44: 296 | I44: 74 | J44: =+K44 -> 91.76 | K44: =+M44+M45+M46+M47+M48 -> 91.76 | L44: Inc. Pred. Doc | M44: =+H44*N44 -> 14.8 | N44: 0.05
A45: 2021 | B45: 1273 | C45: 175 del 01/12/2021 | D45: ZE23431F56 | E45: Acquisto stampanti multifunzione per dotazione domestica magistrati | F45: 18500 | G45: =+F45*0.02 -> 370 | H45: =+G45*0.8 -> 296 | I45: =+G45*0.2 -> 74 | L45: Coll. Inc. Pred. Doc | M45: =+H45*N45 -> 19.24 | N45: 0.065
A46: 2021 | B46: 1273 | C46: 175 del 01/12/2021 | D46: ZE23431F56 | E46: Acquisto stampanti multifunzione per dotazione domestica magistrati | F46: 18500 | G46: 370 | H46: 296 | I46: 74 | L46: Coll. Inc. Pred. Doc | M46: =+H46*N46 -> 10.36 | N46: 0.035
A47: 2021 | B47: 1273 | C47: 175 del 01/12/2021 | D47: ZE23431F56 | E47: Acquisto stampanti multifunzione per dotazione domestica magistrati | F47: 18500 | G47: 370 | H47: 296 | I47: 74 | L47: RUP Affidamento | M47: =+H47*N47 -> 29.6 | N47: 0.1
A48: 2021 | B48: 1273 | C48: 175 del 01/12/2021 | D48: ZE23431F56 | E48: Acquisto stampanti multifunzione per dotazione domestica magistrati | F48: 18500 | G48: 370 | H48: 296 | I48: 74 | L48: Coll RUP Aff. | M48: =+H48*N48 -> 17.76 | N48: 0.06
A49: 2021 | B49: 1273 | C49: 27 DEL 18/02/2021 | D49: 85909070BB | E49: BANCA DATI IL SOLE 24 ORE | F49: 298000 | G49: =+F49*1.9/100 -> 5662 | H49: 4529.6 | I49: 1132.4 | J49: =+K49 -> 1404.176 | K49: =+M49+M50+M51+M52 -> 1404.176 | L49: Inc. Pred. Doc | M49: =+H49*N49 -> 226.48 | N49: 0.05
A50: 2021 | B50: 1273 | C50: 27 DEL 18/02/2021 | D50: 85909070BB | E50: BANCA DATI IL SOLE 24 ORE | F50: 298000 | G50: =+F50*1.9/100 -> 5662 | H50: =+G50*0.8 -> 4529.6 | I50: =+G50*0.2 -> 1132.4 | L50: Coll. Inc. Pred. Doc | M50: =+H50*N50 -> 452.96 | N50: 0.1
A51: 2021 | B51: 1273 | C51: 27 DEL 18/02/2021 | D51: 85909070BB | E51: BANCA DATI IL SOLE 24 ORE | F51: 298000 | G51: 5662 | H51: 4529.6 | I51: 1132.4 | L51: RUP Affidamento | M51: =+H51*N51 -> 452.96 | N51: 0.1
A52: 2021 | B52: 1273 | C52: 27 DEL 18/02/2021 | D52: 85909070BB | E52: BANCA DATI IL SOLE 24 ORE | F52: 298000 | G52: 5662 | H52: 4529.6 | I52: 1132.4 | L52: Coll RUP Aff. | M52: =+H52*N52 -> 271.776 | N52: 0.06
A53: 2021 | B53: 1273 | C53: 20 DEL 11/02/2021 | D53: ZB13099E1E | E53: Fornitura Licenze Sistema Istituzionale | F53: 10299.27 | G53: =+F53*2/100 -> 205.9854 | H53: 164.78832 | I53: 41.19708 | J53: =+K53 -> 51.0843792 | K53: =+M53+M54+M55+M56 -> 51.0843792 | L53: Inc. Pred. Doc | M53: =+H53*N53 -> 8.239416 | N53: 0.05
A54: 2021 | B54: 1273 | C54: 20 DEL 11/02/2021 | D54: ZB13099E1E | E54: Fornitura Licenze Sistema Istituzionale | F54: 10299.27 | G54: =+F54*2/100 -> 205.9854 | H54: =+G54*0.8 -> 164.78832 | I54: =+G54*0.2 -> 41.19708 | L54: Coll. Inc. Pred. Doc | M54: =+H54*N54 -> 16.478832 | N54: 0.1
A55: 2021 | B55: 1273 | C55: 20 DEL 11/02/2021 | D55: ZB13099E1E | E55: Fornitura Licenze Sistema Istituzionale | F55: 10299.27 | G55: =+F55*2/100 -> 205.9854 | H55: 164.78832 | I55: 41.19708 | L55: RUP Affidamento | M55: =+H55*N55 -> 16.478832 | N55: 0.1
A56: 2021 | B56: 1273 | C56: 20 DEL 11/02/2021 | D56: ZB13099E1E | E56: Fornitura Licenze Sistema Istituzionale | F56: 10299.27 | G56: 205.9854 | H56: 164.78832 | I56: 41.19708 | L56: Coll RUP Aff. | M56: =+H56*N56 -> 9.8872992 | N56: 0.06
A57: 2021 | B57: 1273 | C57: 59 del 22/04/2021 | D57: Z683159509 | E57: Fornitura Licenze Team Viewer | F57: 1438.86 | G57: =+F57*2/100 -> 28.7772 | H57: 23.02176 | I57: 5.75544 | J57: =+K57 -> 7.1367456 | K57: =+M57+M58+M60+M61+M59 -> 7.1367456 | L57: Inc. Pred. Doc | M57: =+H57*N57 -> 1.151088 | N57: 0.05
A58: 2021 | B58: 1273 | C58: 59 del 22/04/2021 | D58: Z683159509 | E58: Fornitura Licenze Team Viewer | F58: 1438.86 | G58: =+F58*2/100 -> 28.7772 | H58: =+G58*0.8 -> 23.02176 | I58: =+G58*0.2 -> 5.75544 | L58: Coll. Inc. Pred. Doc | M58: =+H58*N58 -> 1.4964144 | N58: 0.065
A59: 2021 | B59: 1273 | C59: 59 del 22/04/2021 | D59: Z683159509 | E59: Fornitura Licenze Team Viewer | F59: 1438.86 | G59: =+F59*2/100 -> 28.7772 | H59: =+G59*0.8 -> 23.02176 | I59: =+G59*0.2 -> 5.75544 | L59: Coll. Inc. Pred. Doc | M59: =+H59*N59 -> 0.8057616 | N59: 0.035
A60: 2021 | B60: 1273 | C60: 59 del 22/04/2021 | D60: Z683159509 | E60: Fornitura Licenze Team Viewer | F60: 1438.86 | G60: 28.7772 | H60: 23.02176 | I60: 5.75544 | L60: RUP Affidamento | M60: =+H60*N60 -> 2.302176 | N60: 0.1
A61: 2021 | B61: 1273 | C61: 59 del 22/04/2021 | D61: Z683159509 | E61: Fornitura Licenze Team Viewer | F61: 1438.86 | G61: 28.7772 | H61: 23.02176 | I61: 5.75544 | L61: Coll RUP Aff. | M61: =+H61*N61 -> 1.3813056 | N61: 0.06
A62: 2021 | B62: 1273 | C62: 84 del 18/06/2021 | D62: 87985243B2 | E62: Licenze Adobe | F62: 324309.29 | G62: =+F62*1.9/100 -> 6161.87651 | H62: 4929.501208 | I62: 1232.375302 | J62: =+K62 -> 690.1301691 | K62: =+M62+M63+M64+M65+M66+M67 -> 690.1301691 | L62: Inc. Pred. Doc | M62: =+H62*N62 -> 98.59002416 | N62: 0.02
A63: 2021 | B63: 1273 | C63: 84 del 18/06/2021 | D63: 87985243B2 | E63: Licenze Adobe | F63: 324309.29 | G63: =+F63*1.9/100 -> 6161.87651 | H63: =+G63*0.8 -> 4929.501208 | I63: =+G63*0.2 -> 1232.375302 | L63: Coll. Inc. Pred. Doc | M63: =+H63*N63 -> 24.64750604 | N63: 0.005
A64: 2021 | B64: 1273 | C64: 84 del 18/06/2021 | D64: 87985243B2 | E64: Licenze Adobe | F64: 324309.29 | G64: 6161.87651 | H64: 4929.501208 | I64: 1232.375302 | L64: Coll. Inc. Pred. Doc | M64: =+H64*N64 -> 24.64750604 | N64: 0.005
A65: 2021 | B65: 1273 | C65: 84 del 18/06/2021 | D65: 87985243B2 | E65: Licenze Adobe | F65: 324309.29 | G65: 6161.87651 | H65: 4929.501208 | I65: 1232.375302 | L65: RUP Affidamento | M65: =+H65*N65 -> 394.3600966 | N65: 0.08
A66: 2021 | B66: 1273 | C66: 84 del 18/06/2021 | D66: 87985243B2 | E66: Licenze Adobe | F66: 324309.29 | G66: 6161.87651 | H66: 4929.501208 | I66: 1232.375302 | L66: Coll RUP Aff. | M66: =+H66*N66 -> 73.94251812 | N66: 0.015
A67: 2021 | B67: 1273 | C67: 84 del 18/06/2021 | D67: 87985243B2 | E67: Licenze Adobe | F67: 324309.29 | G67: 6161.87651 | H67: 4929.501208 | I67: 1232.375302 | L67: Coll RUP Aff. | M67: =+H67*N67 -> 73.94251812 | N67: 0.015
A68: 2021 | B68: 1273 | C68: 113 del24/08/2021 | D68: Z4632D0239 | E68: Fornitura Licenze Microsoft | F68: 22110 | G68: =+F68*2/100 -> 442.2 | H68: 353.76 | I68: 88.44 | J68: =+K68 -> 49.5264 | K68: =+M68+M69+M70+M71 -> 49.5264 | L68: Inc. Pred. Doc | M68: =+H68*N68 -> 7.0752 | N68: 0.02
A69: 2021 | B69: 1273 | C69: 113 del24/08/2021 | D69: Z4632D0239 | E69: Fornitura Licenze Microsoft | F69: 22110 | G69: =+F69*2/100 -> 442.2 | H69: =+G69*0.8 -> 353.76 | I69: =+G69*0.2 -> 88.44 | L69: Coll. Inc. Pred. Doc | M69: =+H69*N69 -> 3.5376 | N69: 0.01
A70: 2021 | B70: 1273 | C70: 113 del24/08/2021 | D70: Z4632D0239 | E70: Fornitura Licenze Microsoft | F70: 22110 | G70: 442.2 | H70: 353.76 | I70: 88.44 | L70: RUP Affidamento | M70: =+H70*N70 -> 28.3008 | N70: 0.08
A71: 2021 | B71: 1273 | C71: 113 del24/08/2021 | D71: Z4632D0239 | E71: Fornitura Licenze Microsoft | F71: 22110 | G71: 442.2 | H71: 353.76 | I71: 88.44 | L71: Coll RUP Aff. | M71: =+H71*N71 -> 10.6128 | N71: 0.03
A72: 2021 | B72: 1273 | C72: 140 del 15/10/2021 | D72: Z8133751DC | E72: fornitura della licenza software Lansweeper | F72: 24000 | G72: =+F72*2/100 -> 480 | H72: 384 | I72: 96 | J72: =+K72 -> 119.04 | K72: =+M72+M73+M74+M76+M75 -> 119.04 | L72: Inc. Pred. Doc | M72: =+H72*N72 -> 19.2 | N72: 0.05
A73: 2021 | B73: 1273 | C73: 140 del 15/10/2021 | D73: Z8133751DC | E73: fornitura della licenza software Lansweeper | F73: 24000 | G73: =+F73*2/100 -> 480 | H73: =+G73*0.8 -> 384 | I73: =+G73*0.2 -> 96 | L73: Coll. Inc. Pred. Doc | M73: =+H73*N73 -> 24.96 | N73: 0.065
A74: 2021 | B74: 1273 | C74: 140 del 15/10/2021 | D74: Z8133751DC | E74: fornitura della licenza software Lansweeper | F74: 24000 | G74: 480 | H74: 384 | I74: 96 | L74: Coll. Inc. Pred. Doc | M74: =+H74*N74 -> 13.44 | N74: 0.035
A75: 2021 | B75: 1273 | C75: 140 del 15/10/2021 | D75: Z8133751DC | E75: fornitura della licenza software Lansweeper | F75: 24000 | G75: =+F75*2/100 -> 480 | H75: =+G75*0.8 -> 384 | I75: =+G75*0.2 -> 96 | L75: RUP Affidamento | M75: =+H75*N75 -> 38.4 | N75: 0.1
A76: 2021 | B76: 1273 | C76: 140 del 15/10/2021 | D76: Z8133751DC | E76: fornitura della licenza software Lansweeper | F76: 24000 | G76: 480 | H76: 384 | I76: 96 | L76: Coll RUP Aff. | M76: =+H76*N76 -> 23.04 | N76: 0.06
A77: 2021 | B77: 1273 | C77: 150 DEL 29/10/2021 | D77: 8961653DFE. | E77: servizio di consulenza progettuale a consumo per prodotti Oracle | F77: 49920 | G77: 998.4 | H77: 798.72 | I77: 199.68 | J77: =+K77 -> 247.6032 | K77: =+M77+M78+M79+M80 -> 247.6032 | L77: Inc. Pred. Doc | M77: =+H77*N77 -> 79.872 | N77: 0.1
A78: 2021 | B78: 1273 | C78: 150 DEL 29/10/2021 | D78: 8961653DFE. | E78: servizio di consulenza progettuale a consumo per prodotti Oracle | F78: 49920 | G78: 998.4 | H78: =+G78*0.8 -> 798.72 | I78: =+G78*0.2 -> 199.68 | L78: Coll. Inc. Pred. Doc | M78: =+H78*N78 -> 79.872 | N78: 0.1
A79: 2021 | B79: 1273 | C79: 150 DEL 29/10/2021 | D79: 8961653DFE. | E79: servizio di consulenza progettuale a consumo per prodotti Oracle | F79: 49920 | G79: 998.4 | H79: 798.72 | I79: 199.68 | L79: RUP Affidamento | M79: =+H79*N79 -> 47.9232 | N79: 0.06
A80: 2021 | B80: 1273 | C80: 150 DEL 29/10/2021 | D80: 8961653DFE. | E80: servizio di consulenza progettuale a consumo per prodotti Oracle | F80: 49920 | G80: 998.4 | H80: 798.72 | I80: 199.68 | L80: Coll RUP Aff. | M80: =+H80*N80 -> 39.936 | N80: 0.05
A81: 2021 | B81: 1273 | C81: 168 DEL 24/11/2021 | D81: 8993874B9B | E81: supporto specialistico tecnico per le licenze Oracle | F81: 177786.39 | G81: 3555.7278 | H81: 2844.58224 | I81: 711.14556 | J81: =+K81 -> 881.8204944 | K81: =+M81+M82+M83+M84+M85+M86 -> 881.8204944 | L81: Inc. Pred. Doc | M81: =+H81*N81 -> 142.229112 | N81: 0.05
A82: 2021 | B82: 1273 | C82: 168 DEL 24/11/2021 | D82: 8993874B9B | E82: supporto specialistico tecnico per le licenze Oracle | F82: 177786.39 | G82: 3555.7278 | H82: =+G82*0.8 -> 2844.58224 | I82: =+G82*0.2 -> 711.14556 | L82: Coll. Inc. Pred. Doc | M82: =+H82*N82 -> 142.229112 | N82: 0.05
A83: 2021 | B83: 1273 | C83: 168 DEL 24/11/2021 | D83: 8993874B9B | E83: supporto specialistico tecnico per le licenze Oracle | F83: 177786.39 | G83: 3555.7278 | H83: 2844.58224 | I83: 711.14556 | L83: =+L82 -> Coll. Inc. Pred. Doc | M83: =+H83*N83 -> 142.229112 | N83: 0.05
A84: 2021 | B84: 1273 | C84: 168 DEL 24/11/2021 | D84: 8993874B9B | E84: supporto specialistico tecnico per le licenze Oracle | F84: 177786.39 | G84: 3555.7278 | H84: 2844.58224 | I84: 711.14556 | L84: RUP Affidamento | M84: =+H84*N84 -> 284.458224 | N84: 0.1
A85: 2021 | B85: 1273 | C85: 168 DEL 24/11/2021 | D85: 8993874B9B | E85: supporto specialistico tecnico per le licenze Oracle | F85: 177786.39 | G85: 3555.7278 | H85: 2844.58224 | I85: 711.14556 | L85: Coll RUP Aff. | M85: =+H85*N85 -> 85.3374672 | N85: 0.03
A86: 2021 | B86: 1273 | C86: 168 DEL 24/11/2021 | D86: 8993874B9B | E86: supporto specialistico tecnico per le licenze Oracle | F86: 177786.39 | G86: 3555.7278 | H86: 2844.58224 | I86: 711.14556 | L86: =+L85 -> Coll RUP Aff. | M86: =+H86*N86 -> 85.3374672 | N86: 0.03
A87: 2021 | B87: 1273 | C87: 220 DEL 12/02/2021 | D87: Z00307C4E3 | E87: Piattaforma PA WHISTLEBLOWINGS | F87: 24000 | G87: 480 | H87: 384 | I87: 96 | J87: =+K87 -> 119.04 | K87: =+M87+M88+M89+M90+M91 -> 119.04 | L87: Inc. Pred. Doc | M87: =+H87*N87 -> 19.2 | N87: 0.05
A88: 2021 | B88: 1273 | C88: 220 DEL 12/02/2021 | D88: Z00307C4E3 | E88: Piattaforma PA WHISTLEBLOWINGS | F88: 24000 | G88: 480 | H88: =+G88*0.8 -> 384 | I88: =+G88*0.2 -> 96 | L88: Coll. Inc. Pred. Doc | M88: =+H88*N88 -> 24.96 | N88: 0.065
A89: 2021 | B89: 1273 | C89: 220 DEL 12/02/2021 | D89: Z00307C4E3 | E89: Piattaforma PA WHISTLEBLOWINGS | F89: 24000 | G89: 480 | H89: 384 | I89: 96 | L89: Coll. Inc. Pred. Doc | M89: =+H89*N89 -> 13.44 | N89: 0.035
A90: 2021 | B90: 1273 | C90: 220 DEL 12/02/2021 | D90: Z00307C4E3 | E90: Piattaforma PA WHISTLEBLOWINGS | F90: 24000 | G90: 480 | H90: 384 | I90: 96 | L90: RUP Affidamento | M90: =+H90*N90 -> 38.4 | N90: 0.1
A91: 2021 | B91: 1273 | C91: 220 DEL 12/02/2021 | D91: Z00307C4E3 | E91: Piattaforma PA WHISTLEBLOWINGS | F91: 24000 | G91: 480 | H91: 384 | I91: 96 | L91: Coll RUP Aff. | M91: =+H91*N91 -> 23.04 | N91: 0.06
A92: 2021 | B92: 1273 | C92: 14 del 29/01/2021 | D92: ZA7303CA17 | E92: 250 badge marcatempo | F92: 2450 | G92: =+F92*2/100 -> 49 | H92: 39.2 | I92: 9.8 | J92: =+K92 -> 12.152 | K92: =+M92+M93+M94+M95 -> 12.152 | L92: Inc. Pred. Doc | M92: =+H93*N92 -> 1.96 | N92: 0.05
A93: 2021 | B93: 1273 | C93: 14 del 29/01/2021 | D93: ZA7303CA17 | E93: 250 badge marcatempo | F93: 2450 | G93: =+F93*2/100 -> 49 | H93: =+G93*0.8 -> 39.2 | I93: =+G93*0.2 -> 9.8 | L93: Coll. Inc. Pred. Doc | M93: =+H94*N93 -> 3.92 | N93: 0.1
A94: 2021 | B94: 1273 | C94: 14 del 29/01/2021 | D94: ZA7303CA17 | E94: 250 badge marcatempo | F94: 2450 | G94: 49 | H94: 39.2 | I94: 9.8 | L94: RUP Affidamento | M94: =+H95*N94 -> 3.92 | N94: 0.1
A95: 2021 | B95: 1273 | C95: 14 del 29/01/2021 | D95: ZA7303CA17 | E95: 250 badge marcatempo | F95: 2450 | G95: 49 | H95: 39.2 | I95: 9.8 | L95: Coll RUP Aff. | M95: =+H95*N95 -> 2.352 | N95: 0.06
A96: 2021 | B96: 1273 | C96: 169 DEL 24/11/2021 | D96: ZE2340F94B | E96: MATERIALE FACILE CONSUMO | F96: 11700 | G96: =+F96*2/100 -> 234 | H96: =+G96*0.8 -> 187.2 | I96: =+G96*0.2 -> 46.8 | J96: =+K96 -> 58.032 | K96: =+M96+M97+M99+M100+M98 -> 58.032 | L96: Inc. Pred. Doc | M96: =+H96*N96 -> 9.36 | N96: 0.05
A97: 2021 | B97: 1273 | C97: 169 DEL 24/11/2021 | D97: ZE2340F94B | E97: MATERIALE FACILE CONSUMO | F97: 11700 | G97: =+F97*2/100 -> 234 | H97: =+G97*0.8 -> 187.2 | I97: =+G97*0.2 -> 46.8 | L97: Coll. Inc. Pred. Doc | M97: =+H97*N97 -> 12.168 | N97: 0.065
A98: 2021 | B98: 1273 | C98: 169 DEL 24/11/2021 | D98: ZE2340F94B | E98: MATERIALE FACILE CONSUMO | F98: 11700 | G98: 234 | H98: =+G98*0.8 -> 187.2 | I98: =+G98*0.2 -> 46.8 | L98: Coll. Inc. Pred. Doc | M98: =+H98*N98 -> 6.552 | N98: 0.035
A99: 2021 | B99: 1273 | C99: 169 DEL 24/11/2021 | D99: ZE2340F94B | E99: MATERIALE FACILE CONSUMO | F99: 11700 | G99: 234 | H99: 187.2 | I99: 46.8 | L99: RUP Affidamento | M99: =+H99*N99 -> 18.72 | N99: 0.1
A100: 2021 | B100: 1273 | C100: 169 DEL 24/11/2021 | D100: ZE2340F94B | E100: MATERIALE FACILE CONSUMO | F100: 11700 | G100: 234 | H100: 187.2 | I100: 46.8 | L100: Coll RUP Aff. | M100: =+H100*N100 -> 11.232 | N100: 0.06
A101: 2021 | B101: 1273 | C101: 4 DEL 12/01/2021 | D101: ZB83019DD8 | E101: n. 1 licenze ACCA software pacchetto Primus + Certus (IN ACCORDO CON UFF. INF. AFF. + ESECUZIONE esc. Progr.) | F101: 6500 | G101: =+F101*2/100 -> 130 | H101: 104 | I101: 26 | J101: =+K101 -> 95.68 | K101: =+M101+M102+M103+M104+M105+M106+M108+M107+M109+M110+M111 -> 95.68 | L101: Inc. Pred. Doc | M101: =+H101*N101 -> 5.2 | N101: 0.05
A102: 2021 | B102: 1273 | C102: 4 DEL 12/01/2021 | D102: ZB83019DD8 | E102: n. 1 licenze ACCA software pacchetto Primus + Certus (IN ACCORDO CON UFF. INF. AFF. + ESECUZIONE esc. Progr.) | F102: 6500 | G102: =+F102*2/100 -> 130 | H102: =+G102*0.8 -> 104 | I102: =+G102*0.2 -> 26 | L102: Coll. Inc. Pred. Doc | M102: =+H102*N102 -> 10.4 | N102: 0.1
A103: 2021 | B103: 1273 | C103: 4 DEL 12/01/2021 | D103: ZB83019DD8 | E103: n. 1 licenze ACCA software pacchetto Primus + Certus (IN ACCORDO CON UFF. INF. AFF. + ESECUZIONE esc. Progr.) | F103: 6500 | G103: 130 | H103: 104 | I103: 26 | L103: RUP Affidamento | M103: =+H103*N103 -> 10.4 | N103: 0.1
A104: 2021 | B104: 1273 | C104: 4 DEL 12/01/2021 | D104: ZB83019DD8 | E104: n. 1 licenze ACCA software pacchetto Primus + Certus (IN ACCORDO CON UFF. INF. AFF. + ESECUZIONE esc. Progr.) | F104: 6500 | G104: 130 | H104: 104 | I104: 26 | L104: Coll RUP Aff. | M104: =+H104*N104 -> 6.24 | N104: 0.06
A105: 2021 | B105: 1273 | C105: 4 DEL 12/01/2021 | D105: ZB83019DD8 | E105: n. 1 licenze ACCA software pacchetto Primus + Certus (IN ACCORDO CON UFF. INF. AFF. + ESECUZIONE esc. Progr.) | F105: 6500 | G105: 130 | H105: 104 | I105: 26 | L105: Rup esecuz. | M105: =+H105*N105 -> 17.68 | N105: 0.17
A106: 2021 | B106: 1273 | C106: 4 DEL 12/01/2021 | D106: ZB83019DD8 | E106: n. 1 licenze ACCA software pacchetto Primus + Certus (IN ACCORDO CON UFF. INF. AFF. + ESECUZIONE esc. Progr.) | F106: 6500 | G106: 130 | H106: 104 | I106: 26 | L106: Coll. Rup esec. | M106: =+H106*N106 -> 10.4 | N106: 0.1
A107: 2021 | B107: 1273 | C107: 4 DEL 12/01/2021 | D107: ZB83019DD8 | E107: n. 1 licenze ACCA software pacchetto Primus + Certus (IN ACCORDO CON UFF. INF. AFF. + ESECUZIONE esc. Progr.) | F107: 6500 | G107: 130 | H107: 104 | I107: 26 | L107: DEC | M107: =+H107*N107 -> 12.48 | N107: 0.12
A108: 2021 | B108: 1273 | C108: 4 DEL 12/01/2021 | D108: ZB83019DD8 | E108: n. 1 licenze ACCA software pacchetto Primus + Certus (IN ACCORDO CON UFF. INF. AFF. + ESECUZIONE esc. Progr.) | F108: 6500 | G108: 130 | H108: 104 | I108: 26 | L108: Coll. DEC | M108: =+H108*N108 -> 5.2 | N108: 0.05
A109: 2021 | B109: 1273 | C109: 4 DEL 12/01/2021 | D109: ZB83019DD8 | E109: n. 1 licenze ACCA software pacchetto Primus + Certus (IN ACCORDO CON UFF. INF. AFF. + ESECUZIONE esc. Progr.) | F109: 6500 | G109: 130 | H109: 104 | I109: 26 | L109: Coll. DEC | M109: =+H109*N109 -> 5.2 | N109: 0.05
A110: 2021 | B110: 1273 | C110: 4 DEL 12/01/2021 | D110: ZB83019DD8 | E110: n. 1 licenze ACCA software pacchetto Primus + Certus (IN ACCORDO CON UFF. INF. AFF. + ESECUZIONE esc. Progr.) | F110: 6500 | G110: 130 | H110: 104 | I110: 26 | L110: Inc. Verif. Conformità | M110: =+H110*N110 -> 8.32 | N110: 0.08
A111: 2021 | B111: 1273 | C111: 4 DEL 12/01/2021 | D111: ZB83019DD8 | E111: n. 1 licenze ACCA software pacchetto Primus + Certus (IN ACCORDO CON UFF. INF. AFF. + ESECUZIONE esc. Progr.) | F111: 6500 | G111: 130 | H111: 104 | I111: 26 | L111: Coll. Inc. Ver. Conf | M111: =+H111*N111 -> 4.16 | N111: 0.04
A112: 2021 | B112: 1273 | C112: 147 DEL 27/10/2021 | D112: Z6C339AA21 | E112: START WEB | F112: 34800 | G112: =+F112*2/100 -> 696 | H112: 556.8 | I112: 139.2 | J112: =+K112 -> 172.608 | K112: =+M112+M113+M114+M115 -> 172.608 | L112: Inc. Pred. Doc | M112: =+H112*N112 -> 27.84 | N112: 0.05
A113: 2021 | B113: 1273 | C113: 153 DEL 02/11/2021 | D113: Z503378658 | E113: START WEB | F113: 34800 | G113: =+F113*2/100 -> 696 | H113: =+G113*0.8 -> 556.8 | I113: =+G113*0.2 -> 139.2 | L113: Coll. Inc. Pred. Doc | M113: =+H113*N113 -> 55.68 | N113: 0.1
A114: 2021 | B114: 1273 | C114: 153 DEL 02/11/2021 | D114: Z503378658 | E114: START WEB | F114: 34800 | G114: 696 | H114: 556.8 | I114: 139.2 | L114: RUP Affidamento | M114: =+H114*N114 -> 55.68 | N114: 0.1
A115: 2021 | B115: 1273 | C115: 153 DEL 02/11/2021 | D115: Z503378658 | E115: START WEB | F115: 34800 | G115: 696 | H115: 556.8 | I115: 139.2 | L115: Coll RUP Aff. | M115: =+H115*N115 -> 33.408 | N115: 0.06
A116: 2021 | B116: 1273 | C116: 147 DEL 27/10/2021 | D116: Z6C339AA21 | E116: Licenze SW MULTIBRAND Ed. 3 - Lotto N. 4 - RED HAT | F116: 35002.76 | G116: =+F116*2/100 -> 700.0552 | H116: 560.04416 | I116: 140.01104 | J116: =+K116 -> 78.4061824 | K116: =+M116+M117+M118+M119 -> 78.4061824 | L116: Inc. Pred. Doc | M116: =+H116*N116 -> 11.2008832 | N116: 0.02
A117: 2021 | B117: 1273 | C117: 147 DEL 27/10/2021 | D117: Z6C339AA21 | E117: Licenze SW MULTIBRAND Ed. 3 - Lotto N. 4 - RED HAT | F117: 35002.76 | G117: =+F117*2/100 -> 700.0552 | H117: =+G117*0.8 -> 560.04416 | I117: =+G117*0.2 -> 140.01104 | L117: Coll. Inc. Pred. Doc | M117: =+H117*N117 -> 5.6004416 | N117: 0.01
A118: 2021 | B118: 1273 | C118: 147 DEL 27/10/2021 | D118: Z6C339AA21 | E118: Licenze SW MULTIBRAND Ed. 3 - Lotto N. 4 - RED HAT | F118: 35002.76 | G118: 700.0552 | H118: 560.04416 | I118: 140.01104 | L118: RUP Affidamento | M118: =+H118*N118 -> 44.8035328 | N118: 0.08
A119: 2021 | B119: 1273 | C119: 147 DEL 27/10/2021 | D119: Z6C339AA21 | E119: Licenze SW MULTIBRAND Ed. 3 - Lotto N. 4 - RED HAT | F119: 35002.76 | G119: 700.0552 | H119: 560.04416 | I119: 140.01104 | L119: Coll RUP Aff. | M119: =+H119*N119 -> 16.8013248 | N119: 0.03
A120: 2021 | B120: 1273 | C120: 143 DEL 20/10/2021 | D120: 8733197E23 | E120: Convenzione Consip Multribrand 3 – Lotto 1 - | F120: 547896 | G120: =+F120*1.9/100 -> 10410.024 | H120: 8328.0192 | I120: 2082.0048 | J120: =+K120 -> 1165.922688 | K120: =+M120+M121+M122+M123 -> 1165.922688 | L120: Inc. Pred. Doc | M120: =+H120*N120 -> 166.560384 | N120: 0.02
A121: 2021 | B121: 1273 | C121: 143 DEL 20/10/2021 | D121: 8733197E23 | E121: Convenzione Consip Multribrand 3 – Lotto 1 - | F121: 547896 | G121: =+F121*1.9/100 -> 10410.024 | H121: 8328.0192 | I121: 2082.0048 | L121: Coll. Inc. Pred. Doc | M121: =+H121*N121 -> 83.280192 | N121: 0.01
A122: 2021 | B122: 1273 | C122: 143 DEL 20/10/2021 | D122: 8733197E23 | E122: Convenzione Consip Multribrand 3 – Lotto 1 - | F122: 547896 | G122: 10410.024 | H122: 8328.0192 | I122: 2082.0048 | L122: RUP Affidamento | M122: =+H122*N122 -> 666.241536 | N122: 0.08
A123: 2021 | B123: 1273 | C123: 143 DEL 20/10/2021 | D123: 8733197E23 | E123: Convenzione Consip Multribrand 3 – Lotto 1 - | F123: 547896 | G123: 10410.024 | H123: 8328.0192 | I123: 2082.0048 | L123: Coll RUP Aff. | M123: =+H123*N123 -> 249.840576 | N123: 0.03
A124: 2020 | B124: 1273 | C124: 229 DEL 04/12/2020 | D124: 85463910F7 | E124: ALFRESCO | F124: 206720 | G124: =+F124*2/100 -> 4134.4 | H124: 3307.52 | I124: 826.88 | J124: =+K124 -> 1025.3312 | K124: =+M124+M125+M127+M128+M126 -> 1025.3312 | L124: Inc. Pred. Doc | M124: =+H124*N124 -> 165.376 | N124: 0.05
A125: 2020 | B125: 1273 | C125: 229 DEL 04/12/2020 | D125: 85463910F7 | E125: ALFRESCO | F125: 206720 | G125: =+F125*2/100 -> 4134.4 | H125: =+G125*0.8 -> 3307.52 | I125: =+G125*0.2 -> 826.88 | L125: Coll. Inc. Pred. Doc | M125: =+H125*N125 -> 214.9888 | N125: 0.065
A126: 2020 | B126: 1273 | C126: 229 DEL 04/12/2020 | D126: 85463910F7 | E126: ALFRESCO | F126: 206720 | G126: 4134.4 | H126: =+G126*0.8 -> 3307.52 | I126: =+G126*0.2 -> 826.88 | L126: Coll. Inc. Pred. Doc | M126: =+H126*N126 -> 115.7632 | N126: 0.035
A127: 2020 | B127: 1273 | C127: 229 DEL 04/12/2020 | D127: 85463910F7 | E127: ALFRESCO | F127: 206720 | G127: 4134.4 | H127: 3307.52 | I127: 826.88 | L127: RUP Affidamento | M127: =+H127*N127 -> 330.752 | N127: 0.1
A128: 2020 | B128: 1273 | C128: 229 DEL 04/12/2020 | D128: 85463910F7 | E128: ALFRESCO | F128: 206720 | G128: 4134.4 | H128: 3307.52 | I128: 826.88 | L128: Coll RUP Aff. | M128: =+H128*N128 -> 198.4512 | N128: 0.06
A129: 2021 | B129: 1273 | C129: 101 DEL 27/07/2021 | D129: 8849370B22 | E129: MATERIALE FACILE CONSUMO | F129: 32500 | G129: =+F129*2/100 -> 650 | H129: 520 | I129: 130 | J129: =+K129 -> 161.2 | K129: =+M129+M130+M132+M133+M131 -> 161.2 | L129: Inc. Pred. Doc | M129: =+H129*N129 -> 26 | N129: 0.05
A130: 2021 | B130: 1273 | C130: 101 DEL 27/07/2021 | D130: 8849370B22 | E130: MATERIALE FACILE CONSUMO | F130: 32500 | G130: =+F130*2/100 -> 650 | H130: =+G130*0.8 -> 520 | I130: =+G130*0.2 -> 130 | L130: Coll. Inc. Pred. Doc | M130: =+H130*N130 -> 33.8 | N130: 0.065
A131: 2021 | B131: 1273 | C131: 101 DEL 27/07/2021 | D131: 8849370B22 | E131: MATERIALE FACILE CONSUMO | F131: 32500 | G131: 650 | H131: 520 | I131: 130 | L131: Coll. Inc. Pred. Doc | M131: =+H131*N131 -> 18.2 | N131: 0.035
A132: 2021 | B132: 1273 | C132: 101 DEL 27/07/2021 | D132: 8849370B22 | E132: MATERIALE FACILE CONSUMO | F132: 32500 | G132: 650 | H132: 520 | I132: 130 | L132: RUP Affidamento | M132: =+H132*N132 -> 52 | N132: 0.1
A133: 2021 | B133: 1273 | C133: 101 DEL 27/07/2021 | D133: 8849370B22 | E133: MATERIALE FACILE CONSUMO | F133: 32500 | G133: 650 | H133: 520 | I133: 130 | L133: Coll RUP Aff. | M133: =+H133*N133 -> 31.2 | N133: 0.06
A134: 2021 | B134: 1273 | C134: 152 DEL 29/10/2021 | D134: ZEE33AFE18. | E134: servizio di Interconnessione tra Sistema Pubblico di Connettività | F134: 11400 | G134: =+F134*2/100 -> 228 | H134: =+G134*0.8 -> 182.4 | I134: =+G134*0.2 -> 45.6 | J134: =+K134 -> 56.544 | K134: =+M134+M135+M136+M137 -> 56.544 | L134: Inc. Pred. Doc | M134: =+H134*N134 -> 9.12 | N134: 0.05
A135: 2021 | B135: 1273 | C135: 152 DEL 29/10/2021 | D135: ZEE33AFE18. | E135: servizio di Interconnessione tra Sistema Pubblico di Connettività | F135: 11400 | G135: =+F135*2/100 -> 228 | H135: =+G135*0.8 -> 182.4 | I135: =+G135*0.2 -> 45.6 | L135: Coll. Inc. Pred. Doc | M135: =+H135*N135 -> 18.24 | N135: 0.1
A136: 2021 | B136: 1273 | C136: 152 DEL 29/10/2021 | D136: ZEE33AFE18. | E136: servizio di Interconnessione tra Sistema Pubblico di Connettività | F136: 11400 | G136: 228 | H136: 182.4 | I136: 45.6 | L136: RUP Affidamento | M136: =+H136*N136 -> 18.24 | N136: 0.1
A137: 2021 | B137: 1273 | C137: 152 DEL 29/10/2021 | D137: ZEE33AFE18. | E137: servizio di Interconnessione tra Sistema Pubblico di Connettività | F137: 11400 | G137: 228 | H137: 182.4 | I137: 45.6 | L137: Coll RUP Aff. | M137: =+H137*N137 -> 10.944 | N137: 0.06
A138: 2021 | B138: 4250 | C138: 80 del 15/06/2021 | D138: 878900545E | E138: fornitura di dischi SSD mod. X319A-6 per storage NetApp AFF A220 | F138: 162000 | G138: =+F138*0.02 -> 3240 | H138: =+G138*80/100 -> 2592 | I138: =+G138*0.2 -> 648 | J138: =+K138 -> 803.52 | K138: =+M138+M139+M140+M141 -> 803.52 | L138: Inc. Pred. Doc | M138: =+H138*N138 -> 129.6 | N138: 0.05
A139: 2021 | B139: 4250 | C139: 80 del 15/06/2021 | D139: 878900545E | E139: fornitura di dischi SSD mod. X319A-6 per storage NetApp AFF A220 | F139: 162000 | G139: =+F139*0.02 -> 3240 | H139: =+G139*80/100 -> 2592 | I139: =+G139*0.2 -> 648 | L139: Coll. Inc. Pred. Doc | M139: =+H139*N139 -> 259.2 | N139: 0.1
A140: 2021 | B140: 4250 | C140: 80 del 15/06/2021 | D140: 878900545E | E140: fornitura di dischi SSD mod. X319A-6 per storage NetApp AFF A220 | F140: 162000 | G140: 3240 | H140: 2592 | I140: 648 | L140: RUP Affidamento | M140: =+H140*N140 -> 259.2 | N140: 0.1
A141: 2021 | B141: 4250 | C141: 80 del 15/06/2021 | D141: 878900545E | E141: fornitura di dischi SSD mod. X319A-6 per storage NetApp AFF A220 | F141: 162000 | G141: 3240 | H141: 2592 | I141: 648 | L141: Coll. RUP Affidamento | M141: =+H141*N141 -> 155.52 | N141: 0.06
A142: 2021 | B142: 4250 | C142: 52 del 13/04/2021 | D142: 870082431B | E142: affidamento della fornitura in adesione alla Convenzione Consip PC Desktop e workstation/ lotto 2 di PC desktop Consip per uffici G.A | F142: 48110 | G142: 962.2 | H142: 769.76 | I142: 192.44 | J142: =+K142 -> 107.7664 | K142: =+M142+M143+M144+M145 -> 107.7664 | L142: Inc. Pred. Doc | M142: =+H142*N142 -> 15.3952 | N142: 0.02
A143: 2021 | B143: 4250 | C143: 52 del 13/04/2021 | D143: 870082431B | E143: affidamento della fornitura in adesione alla Convenzione Consip PC Desktop e workstation/ lotto 2 di PC desktop Consip per uffici G.A | F143: 48110 | G143: 962.2 | H143: 769.76 | I143: =+G143*0.2 -> 192.44 | L143: Coll. Inc. Pred. Doc | M143: =+H143*N143 -> 7.6976 | N143: 0.01
A144: 2021 | B144: 4250 | C144: 52 del 13/04/2021 | D144: 870082431B | E144: affidamento della fornitura in adesione alla Convenzione Consip PC Desktop e workstation/ lotto 2 di PC desktop Consip per uffici G.A | F144: 48110 | G144: 962.2 | H144: 769.76 | I144: 192.44 | L144: RUP Affidamento | M144: =+H144*N144 -> 61.5808 | N144: 0.08
A145: 2021 | B145: 4250 | C145: 52 del 13/04/2021 | D145: 870082431B | E145: affidamento della fornitura in adesione alla Convenzione Consip PC Desktop e workstation/ lotto 2 di PC desktop Consip per uffici G.A | F145: 48110 | G145: 962.2 | H145: 769.76 | I145: 192.44 | L145: Coll. RUP Affidamento | M145: =+H145*N145 -> 23.0928 | N145: 0.03
A146: 2021 | B146: 4250 | C146: 1 del 04/01/2021 | D146: 8420758554 | E146: affidamento della fornitura di 300 notebook 15,6’’ in convenzione consip “ pc portatili e tablet 4 bis | F146: 127190 | G146: 2543.8 | H146: 2035.04 | I146: 508.76 | J146: =+K146 -> 284.9056 | K146: =+M146+M147+M148+M149 -> 284.9056 | L146: Inc. Pred. Doc | M146: =+H146*N146 -> 40.7008 | N146: 0.02
A147: 2021 | B147: 4250 | C147: 1 del 04/01/2021 | D147: 8420758554 | E147: affidamento della fornitura di 300 notebook 15,6’’ in convenzione consip “ pc portatili e tablet 4 bis | F147: 127190 | G147: 2543.8 | H147: 2035.04 | I147: =+G147*0.2 -> 508.76 | L147: Coll. Inc. Pred. Doc | M147: =+H147*N147 -> 20.3504 | N147: 0.01
A148: 2021 | B148: 4250 | C148: 1 del 04/01/2021 | D148: 8420758554 | E148: affidamento della fornitura di 300 notebook 15,6’’ in convenzione consip “ pc portatili e tablet 4 bis | F148: 127190 | G148: 2543.8 | H148: 2035.04 | I148: 508.76 | L148: RUP Affidamento | M148: =+H148*N148 -> 162.8032 | N148: 0.08
A149: 2021 | B149: 4250 | C149: 1 del 04/01/2021 | D149: 8420758554 | E149: affidamento della fornitura di 300 notebook 15,6’’ in convenzione consip “ pc portatili e tablet 4 bis | F149: 127190 | G149: 2543.8 | H149: 2035.04 | I149: 508.76 | L149: Coll. RUP Affidamento | M149: =+H149*N149 -> 61.0512 | N149: 0.03
A150: 2021 | B150: 4250 | C150: 167 DEL 24/11/2021 | D150: Z2A3410964 | E150: affidamento della fornitura stampante “Stampanti 18” Lotto 1 - n. 50 stampanti Epson modello Work Force AL-M320DN | F150: 6784.5 | G150: =+F150*0.02 -> 135.69 | H150: =+G150*80/100 -> 108.552 | I150: 27.138 | J150: =+K150 -> 15.19728 | K150: =+M150+M151+M152+M153 -> 15.19728 | L150: Inc. Pred. Doc | M150: =+H150*N150 -> 2.17104 | N150: 0.02
A151: 2021 | B151: 4250 | C151: 167 DEL 24/11/2021 | D151: Z2A3410964 | E151: affidamento della fornitura stampante “Stampanti 18” Lotto 1 - n. 50 stampanti Epson modello Work Force AL-M320DN. | F151: 6784.5 | G151: =+F151*0.02 -> 135.69 | H151: =+G151*80/100 -> 108.552 | I151: =+G151*0.2 -> 27.138 | L151: Coll. Inc. Pred. Doc | M151: =+H151*N151 -> 1.08552 | N151: 0.01
A152: 2021 | B152: 4250 | C152: 167 DEL 24/11/2021 | D152: Z2A3410964 | E152: affidamento della fornitura stampante “Stampanti 18” Lotto 1 - n. 50 stampanti Epson modello Work Force AL-M320DN. | F152: 6784.5 | G152: 135.69 | H152: 108.552 | I152: 27.138 | L152: RUP Affidamento | M152: =+H152*N152 -> 8.68416 | N152: 0.08
A153: 2021 | B153: 4250 | C153: 167 DEL 24/11/2021 | D153: Z2A3410964 | E153: affidamento della fornitura stampante “Stampanti 18” Lotto 1 - n. 50 stampanti Epson modello Work Force AL-M320DN. | F153: 6784.5 | G153: 135.69 | H153: 108.552 | I153: 27.138 | L153: Coll. RUP Affidamento | M153: =+H153*N153 -> 3.25656 | N153: 0.03
A154: 2021 | B154: 4250 | C154: 75 DEL 03/06/2021 | D154: Z6C31F5372 | E154: Fornitura app. multifunzione in noleggio conv. Consip | F154: 1778.88 | G154: 35.5776 | H154: 28.46208 | I154: 7.11552 | J154: =+K154 -> 3.9846912 | K154: =+M154+M155+M156+M157 -> 3.9846912 | L154: Inc. Pred. Doc | M154: =+H154*N154 -> 0.5692416 | N154: 0.02
A155: 2021 | B155: 4250 | C155: 75 DEL 03/06/2021 | D155: Z6C31F5372 | E155: Fornitura app. multifunzione in noleggio conv. Consip | F155: 1778.88 | G155: =+F155*0.02 -> 35.5776 | H155: =+G155*80/100 -> 28.46208 | I155: =+G155*0.2 -> 7.11552 | L155: Coll. Inc. Pred. Doc | M155: =+H155*N155 -> 0.2846208 | N155: 0.01
A156: 2021 | B156: 4250 | C156: 75 DEL 03/06/2021 | D156: Z6C31F5372 | E156: Fornitura app. multifunzione in noleggio conv. Consip | F156: 1778.88 | G156: 35.5776 | H156: 28.46208 | I156: 7.11552 | L156: RUP Affidamento | M156: =+H156*N156 -> 2.2769664 | N156: 0.08
A157: 2021 | B157: 4250 | C157: 75 DEL 03/06/2021 | D157: Z6C31F5372 | E157: Fornitura app. multifunzione in noleggio conv. Consip | F157: 1778.88 | G157: 35.5776 | H157: 28.46208 | I157: 7.11552 | L157: Coll. RUP Affidamento | M157: =+H157*N157 -> 0.8538624 | N157: 0.03
A158: 2021 | B158: 4250 | C158: 172 del 29/11/2021 | D158: 8999786A58 | E158: Servizio integrato di manutenzione dei gruppi statici di continuità | F158: 89373.8 | G158: 1787.476 | H158: =+G158*0.8 -> 1429.9808 | I158: 357.4952 | J158: =+K158 -> 443.294048 | K158: =+M158+M159+M160+M161+M162 -> 443.294048 | L158: Inc. Pred. Doc | M158: =+H158*N158 -> 71.49904 | N158: 0.05
A159: 2021 | B159: 4250 | C159: 172 del 29/11/2021 | D159: 8999786A58 | E159: Servizio integrato di manutenzione dei gruppi statici di continuità | F159: 89373.8 | G159: =+F159*0.02 -> 1787.476 | H159: =+G159*0.8 -> 1429.9808 | I159: =+G159*0.2 -> 357.4952 | L159: Coll. Inc. Pred. Doc | M159: =+H159*N159 -> 92.948752 | N159: 0.065
A160: 2021 | B160: 4250 | C160: 172 del 29/11/2021 | D160: 8999786A58 | E160: Servizio integrato di manutenzione dei gruppi statici di continuità | F160: 89373.8 | G160: 1787.476 | H160: 1429.9808 | I160: 357.4952 | L160: Coll. Inc. Pred. Doc | M160: =+H160*N160 -> 50.049328 | N160: 0.035
A161: 2021 | B161: 4250 | C161: 172 del 29/11/2021 | D161: 8999786A58 | E161: Servizio integrato di manutenzione dei gruppi statici di continuità | F161: 89373.8 | G161: 1787.476 | H161: 1429.9808 | I161: 357.4952 | L161: RUP Affidamento | M161: =+H161*N161 -> 142.99808 | N161: 0.1
A162: 2021 | B162: 4250 | C162: 172 del 29/11/2021 | D162: 8999786A58 | E162: Servizio integrato di manutenzione dei gruppi statici di continuità | F162: 89373.8 | G162: 1787.476 | H162: 1429.9808 | I162: 357.4952 | L162: Coll.RUP Affidamento | M162: =+H162*N162 -> 85.798848 | N162: 0.06
A163: 2021 | B163: 4250 | C163: 64 DEL 29/04/2021 | D163: 8733197E23 | E163: LICENZE Oracle Conv. Cons. Multibrand 3 | F163: 338575.74 | G163: =+F163*1.9/100 -> 6432.93906 | H163: =+G163*80/100 -> 5146.351248 | I163: 1286.587812 | J163: =+K163 -> 720.4891747 | K163: =+M163+M164+M165+M166 -> 720.4891747 | L163: Inc. Pred. Doc | M163: =+H163*N163 -> 102.927025 | N163: 0.02
A164: 2021 | B164: 4250 | C164: 64 DEL 29/04/2021 | D164: 8733197E23 | E164: LICENZE Oracle Conv. Cons. Multibrand 3 | F164: 338575.74 | G164: =+F164*1.9/100 -> 6432.93906 | H164: =+G164*80/100 -> 5146.351248 | I164: =+G164*0.2 -> 1286.587812 | L164: Coll. Inc. Pred. Doc | M164: =+H164*N164 -> 51.46351248 | N164: 0.01
A165: 2021 | B165: 4250 | C165: 64 DEL 29/04/2021 | D165: 8733197E23 | E165: LICENZE Oracle Conv. Cons. Multibrand 3 | F165: 338575.74 | G165: 6432.93906 | H165: 5146.351248 | I165: 1286.587812 | L165: RUP Affidamento | M165: =+H165*N165 -> 411.7080998 | N165: 0.08
A166: 2021 | B166: 4250 | C166: 64 DEL 29/04/2021 | D166: 8733197E23 | E166: LICENZE Oracle Conv. Cons. Multibrand 3 | F166: 338575.74 | G166: 6432.93906 | H166: 5146.351248 | I166: 1286.587812 | L166: Coll. RUP Affidamento | M166: =+H166*N166 -> 154.3905374 | N166: 0.03
A167: 2021 | B167: 4250 | C167: 44 DEL 19/03/2021 | D167: Z653112EA6 | E167: affidamento della fornitura di 50 notebook 15,6’’ in convenzione consip “ | F167: 28601.1 | G167: =+F167*0.02 -> 572.022 | H167: =+G167*80/100 -> 457.6176 | I167: 114.4044 | J167: =+K167 -> 141.861456 | K167: =+M167+M168+M169+M170 -> 141.861456 | L167: Inc. Pred. Doc | M167: =+H167*N167 -> 22.88088 | N167: 0.05
A168: 2021 | B168: 4250 | C168: 44 DEL 19/03/2021 | D168: Z653112EA6 | E168: affidamento della fornitura di 50 notebook 15,6’’ in convenzione consip “ | F168: 28601.1 | G168: =+F168*0.02 -> 572.022 | H168: =+G168*80/100 -> 457.6176 | I168: =+G168*0.2 -> 114.4044 | L168: Coll. Inc. Pred. Doc | M168: =+H168*N168 -> 45.76176 | N168: 0.1
A169: 2021 | B169: 4250 | C169: 44 DEL 19/03/2021 | D169: Z653112EA6 | E169: affidamento della fornitura di 50 notebook 15,6’’ in convenzione consip “ | F169: 28601.1 | G169: 572.022 | H169: 457.6176 | I169: 114.4044 | L169: RUP Affidamento | M169: =+H169*N169 -> 45.76176 | N169: 0.1
A170: 2021 | B170: 4250 | C170: 44 DEL 19/03/2021 | D170: Z653112EA6 | E170: affidamento della fornitura di 50 notebook 15,6’’ in convenzione consip “ | F170: 28601.1 | G170: 572.022 | H170: 457.6176 | I170: 114.4044 | L170: Coll. RUP Affidamento | M170: =+H170*N170 -> 27.457056 | N170: 0.06
A171: 2021 | B171: 4250 | C171: 50 DEL 08/04/2021 | D171: 8700347977 | E171: fornitura, in adesione alla Convenzione Consip PC DESKTOP E WORKSTATION / LOTTO 1 | F171: 117105 | G171: 2342.1 | H171: 1873.68 | I171: 468.42 | J171: =+K171 -> 262.3152 | K171: =+M171+M172+M173+M174 -> 262.3152 | L171: Inc. Pred. Doc | M171: =+H171*N171 -> 37.4736 | N171: 0.02
A172: 2021 | B172: 4250 | C172: 50 DEL 08/04/2021 | D172: 8700347977 | E172: fornitura, in adesione alla Convenzione Consip PC DESKTOP E WORKSTATION / LOTTO 1 | F172: 117105 | G172: =+F172*0.02 -> 2342.1 | H172: =+G172*80/100 -> 1873.68 | I172: =+G172*0.2 -> 468.42 | L172: Coll. Inc. Pred. Doc | M172: =+H172*N172 -> 18.7368 | N172: 0.01
A173: 2021 | B173: 4250 | C173: 50 DEL 08/04/2021 | D173: 8700347977 | E173: fornitura, in adesione alla Convenzione Consip PC DESKTOP E WORKSTATION / LOTTO 1 | F173: 117105 | G173: 2342.1 | H173: 1873.68 | I173: 468.42 | L173: RUP Affidamento | M173: =+H173*N173 -> 149.8944 | N173: 0.08
A174: 2021 | B174: 4250 | C174: 50 DEL 08/04/2021 | D174: 8700347977 | E174: fornitura, in adesione alla Convenzione Consip PC DESKTOP E WORKSTATION / LOTTO 1 | F174: 117105 | G174: 2342.1 | H174: 1873.68 | I174: 468.42 | L174: Coll. RUP Affidamento | M174: =+H174*N174 -> 56.2104 | N174: 0.03
A175: 2021 | B175: 4250 | C175: 123 DEL 06/10/2021 | D175: 816269442E | E175: fornitura, in adesione alla Convenzione Consip PC DESKTOP E WORKSTATION / LOTTO 2 | F175: 181300 | G175: 3626 | H175: 2900.8 | I175: 725.2 | J175: =+K175 -> 406.112 | K175: =+M175+M176+M177+M178+M179+M180 -> 406.112 | L175: Inc. Pred. Doc | M175: =+H175*N175 -> 58.016 | N175: 0.02
A176: 2021 | B176: 4250 | C176: 123 DEL 06/10/2021 | D176: 816269442E | E176: fornitura, in adesione alla Convenzione Consip PC DESKTOP E WORKSTATION / LOTTO 2 | F176: 181300 | G176: =+F176*0.02 -> 3626 | H176: =+G176*80/100 -> 2900.8 | I176: =+G176*0.2 -> 725.2 | L176: Coll. Inc. Pred. Doc | M176: =+H176*N176 -> 14.504 | N176: 0.005
A177: 2021 | B177: 4250 | C177: 123 DEL 06/10/2021 | D177: 816269442E | E177: fornitura, in adesione alla Convenzione Consip PC DESKTOP E WORKSTATION / LOTTO 2 | F177: 181300 | G177: 3626 | H177: 2900.8 | I177: 725.2 | L177: Coll. Inc. Pred. Doc | M177: =+H177*N177 -> 14.504 | N177: 0.005
A178: 2021 | B178: 4250 | C178: 123 DEL 06/10/2021 | D178: 816269442E | E178: fornitura, in adesione alla Convenzione Consip PC DESKTOP E WORKSTATION / LOTTO 2 | F178: 181300 | G178: 3626 | H178: 2900.8 | I178: 725.2 | L178: RUP Affidamento | M178: =+H178*N178 -> 232.064 | N178: 0.08
A179: 2021 | B179: 4250 | C179: 123 DEL 06/10/2021 | D179: 816269442E | E179: fornitura, in adesione alla Convenzione Consip PC DESKTOP E WORKSTATION / LOTTO 2 | F179: 181300 | G179: 3626 | H179: 2900.8 | I179: 725.2 | L179: Coll. RUP Affidamento | M179: =+H179*N179 -> 43.512 | N179: 0.015
A180: 2021 | B180: 4250 | C180: 123 DEL 06/10/2021 | D180: 816269442E | E180: fornitura, in adesione alla Convenzione Consip PC DESKTOP E WORKSTATION / LOTTO 2 | F180: 181300 | G180: 3626 | H180: 2900.8 | I180: 725.2 | L180: Coll. RUP Affidamento | M180: =+H180*N180 -> 43.512 | N180: 0.015
A181: 2021 | B181: 4250 | C181: 145 del 21/10/2021 | D181: 8950860357 | E181: fornitura e posa in opera di Storage Networking SAN64B-6 | F181: 66500 | G181: 1330 | H181: 1064 | I181: 266 | J181: =+K181 -> 329.84 | K181: =+M181+M182+M183+M184 -> 329.84 | L181: Inc. Pred. Doc | M181: =+H181*N181 -> 53.2 | N181: 0.05
A182: 2021 | B182: 4250 | C182: 145 del 21/10/2021 | D182: 8950860357 | E182: fornitura e posa in opera di Storage Networking SAN64B-6 | F182: 66500 | G182: =+F182*0.02 -> 1330 | H182: =+G182*80/100 -> 1064 | I182: =+G182*0.2 -> 266 | L182: Coll. Inc. Pred. Doc | M182: =+H182*N182 -> 106.4 | N182: 0.1
A183: 2021 | B183: 4250 | C183: 145 del 21/10/2021 | D183: 8950860357 | E183: fornitura e posa in opera di Storage Networking SAN64B-6 | F183: 66500 | G183: 1330 | H183: 1064 | I183: 266 | L183: RUP Affidamento | M183: =+H183*N183 -> 106.4 | N183: 0.1
A184: 2021 | B184: 4250 | C184: 145 del 21/10/2021 | D184: 8950860357 | E184: fornitura e posa in opera di Storage Networking SAN64B-6 | F184: 66500 | G184: 1330 | H184: 1064 | I184: 266 | L184: Coll. RUP Affidamento | M184: =+H184*N184 -> 63.84 | N184: 0.06
A185: 2020 | B185: 4250 | C185: 190 DEL 04/11/2020 | D185: 84986381F1 | E185: fornitura di apparati attivi (switch) per le reti LAN | F185: 195000 | G185: 3900 | H185: 3120 | I185: 780 | J185: =+K185 -> 967.2 | K185: =+M185+M186+M187+M188+M189 -> 967.2 | L185: Inc. Pred. Doc | M185: =+H185*N185 -> 156 | N185: 0.05
A186: 2020 | B186: 4250 | C186: 190 DEL 04/11/2020 | D186: 84986381F1 | E186: fornitura di apparati attivi (switch) per le reti LAN | F186: 195000 | G186: =+F186*0.02 -> 3900 | H186: =+G186*80/100 -> 3120 | I186: =+G186*0.2 -> 780 | L186: Coll. Inc. Pred. Doc | M186: =+H186*N186 -> 202.8 | N186: 0.065
A187: 2020 | B187: 4250 | C187: 190 DEL 04/11/2020 | D187: 84986381F1 | E187: fornitura di apparati attivi (switch) per le reti LAN | F187: 195000 | G187: 3900 | H187: 3120 | I187: 780 | L187: Coll. Inc. Pred. Doc | M187: =+H187*N187 -> 109.2 | N187: 0.035
A188: 2020 | B188: 4250 | C188: 190 DEL 04/11/2020 | D188: 84986381F1 | E188: fornitura di apparati attivi (switch) per le reti LAN | F188: 195000 | G188: 3900 | H188: 3120 | I188: 780 | L188: RUP Affidamento | M188: =+H188*N188 -> 312 | N188: 0.1
A189: 2020 | B189: 4250 | C189: 190 DEL 04/11/2020 | D189: 84986381F1 | E189: fornitura di apparati attivi (switch) per le reti LAN | F189: 195000 | G189: 3900 | H189: 3120 | I189: 780 | L189: Coll. RUP Affidamento | M189: =+H189*N189 -> 187.2 | N189: 0.06
A190: 2021 | B190: 4250 | C190: 148 DEL 28/10/2021 | D190: 8958687E5F | E190: Acquisto notebook da 15,6 pollici per gli Uffici del Processo | F190: 72828 | G190: 1456.56 | H190: 1165.248 | I190: 291.312 | J190: =+K190 -> 361.22688 | K190: =+M190+M191+M192+M193 -> 361.22688 | L190: Inc. Pred. Doc | M190: =+H190*N190 -> 58.2624 | N190: 0.05
A191: 2021 | B191: 4250 | C191: 148 DEL 28/10/2021 | D191: 8958687E5F | E191: Acquisto notebook da 15,6 pollici per gli Uffici del Processo | F191: 72828 | G191: =+F191*0.02 -> 1456.56 | H191: =+G191*80/100 -> 1165.248 | I191: =+G191*0.2 -> 291.312 | L191: Coll. Inc. Pred. Doc | M191: =+H190*N191 -> 116.5248 | N191: 0.1
A192: 2021 | B192: 4250 | C192: 148 DEL 28/10/2021 | D192: 8958687E5F | E192: Acquisto notebook da 15,6 pollici per gli Uffici del Processo | F192: 72828 | G192: 1456.56 | H192: 1165.248 | I192: 291.312 | L192: RUP Affidamento | M192: =+H190*N192 -> 116.5248 | N192: 0.1
A193: 2021 | B193: 4250 | C193: 148 DEL 28/10/2021 | D193: 8958687E5F | E193: Acquisto notebook da 15,6 pollici per gli Uffici del Processo | F193: 72828 | G193: 1456.56 | H193: 1165.248 | I193: 291.312 | L193: Coll. RUP Affidamento | M193: =+H190*N193 -> 69.91488 | N193: 0.06
A194: 2021 | B194: 4250 | C194: 154 DEL 04/11/2021 | D194: 8964344AAE | E194: fornitura di un nuovo gruppo statico di continuità | F194: 47300 | G194: 946 | H194: 756.8 | I194: 189.2 | J194: =+K194 -> 234.608 | K194: =+M194+M195+M196+M197+M198 -> 234.608 | L194: Inc. Pred. Doc | M194: =+H194*N194 -> 37.84 | N194: 0.05
A195: 2021 | B195: 4250 | C195: 154 DEL 04/11/2021 | D195: 8964344AAE | E195: fornitura di un nuovo gruppo statico di continuità | F195: 47300 | G195: =+F195*0.02 -> 946 | H195: =+G195*80/100 -> 756.8 | I195: =+G195*0.2 -> 189.2 | L195: Coll. Inc. Pred. Doc | M195: =+H195*N195 -> 49.192 | N195: 0.065
A196: 2021 | B196: 4250 | C196: 154 DEL 04/11/2021 | D196: 8964344AAE | E196: fornitura di un nuovo gruppo statico di continuità | F196: 47300 | G196: 946 | H196: 756.8 | I196: 189.2 | L196: Coll. Inc. Pred. Doc | M196: =+H196*N196 -> 26.488 | N196: 0.035
A197: 2021 | B197: 4250 | C197: 154 DEL 04/11/2021 | D197: 8964344AAE | E197: fornitura di un nuovo gruppo statico di continuità | F197: 47300 | G197: 946 | H197: 756.8 | I197: 189.2 | L197: RUP Affidamento | M197: =+H197*N197 -> 75.68 | N197: 0.1
A198: 2021 | B198: 4250 | C198: 154 DEL 04/11/2021 | D198: 8964344AAE | E198: fornitura di un nuovo gruppo statico di continuità | F198: 47300 | G198: 946 | H198: 756.8 | I198: 189.2 | L198: Coll. RUP Affidamento | M198: =+H198*N198 -> 45.408 | N198: 0.06
A199: 2020 | B199: 1295 | C199: 63 del 12/03/2020 | D199: 8234592848 | E199: Servizio di pulizia presso le sedi del CDS | F199: 214000 | G199: 4280 | H199: 3424 | I199: 856 | J199: =+H199 -> 3424 | K199: =+M199+M200+M201+M202+M203+M204+M205+M206+M207+M208+M209+M210+M211+M212+M213 -> 2910.4 | L199: Incaricato programm. | M199: =+H199*N199 -> 102.72 | N199: 0.03 | Q199: =+H199-O199-P199-K199 -> 513.6
A200: 2020 | B200: 1295 | C200: 63 del 12/03/2020 | D200: 8234592848 | E200: Servizio di pulizia presso le sedi del CDS | F200: 214000 | G200: 4280 | H200: 3424 | I200: 856 | L200: Coll. Inc. prog. | M200: =+H200*N200 -> 34.24 | N200: 0.01
... 512 more rows
